[Event "31st Kavala Open-A 2022"]
[Site "Kavala"]
[Date "2022.07.30"]
[Round "6.10"]
[White "Maltsevskaya, Aleksandra"]
[Black "Stefanou, Dimitrios"]
[Result "1/2-1/2"]
[ECO "C15"]
[WhiteElo "2378"]
[BlackElo "2184"]
[Annotator "TA"]
[PlyCount "56"]
[EventDate "2022.07.27"]
[EventType "swiss"]
[EventCountry "GRE"]
[SourceTitle "playchess.com"]
[Source "ChessBase"]
[SourceQuality "1"]
[TimeControl "40/5400+30:1800+30"]

{[%evp 10,56,2,-11,-7,-4,6,-11,6,22,43,39,20,11,52,16,25,-11,0,0,17,20,40,43,49,-29,-12,-17,-16,-16,-18,-43,-31,-48,-35,-74,-77,-136,-118,-168,-180,-146,-85,-85,0,-161,0,-82,0]} 1. e4 {[%emt 0:03:50]} e6 {[%emt 0:00:20]} 2. d4 {[%emt 0:00:22]} d5 {[%emt 0:00:14]} 3. Nc3 {[%emt 0:00:06]} Bb4 {[%emt 0:00:07]} 4. Bd3 {[%emt 0:01:58]} dxe4 {[%emt 0:09:00]} 5. Bxe4 {[%emt 0:00:07]} Nf6 {[%emt 0:00:41]} 6. Bd3 {[%emt 0:01:32]} O-O {[%emt 0:02:27] C15: French: 3 Nc3 Bb4: Unusual White 4th moves.} 7. Nf3 {[%emt 0:00:22]} Nbd7 {[%emt 0:02:42]} 8. Bg5 {[%emt 0:05:39]} Be7 {[%emt 0:04:49] The position is equal.} 9. Qe2 {[%emt 0:05:30]} c5 {[%emt 0:07:58]} 10. O-O-O {[%emt 0:00:56][%cal Od4d5]} cxd4 {[%emt 0:03:57]} 11. Nxd4 {[%emt 0:00:09] [#]} h6 $146 {[%emt 0:09:16]} ({Predecessor:} 11... Qb6 12. Nb3 a6 13. h4 Re8 14. Rh3 a5 15. Be3 Qc7 16. Nb5 Qb8 17. a4 e5 {1-0 (37) Brunner,T (1945)-Seidl,J Bad Woerishofen 2019}) 12. Be3 {[%emt 0:10:51]} (12. h4 $5) 12... Nc5 {[%emt 0:08:44]} 13. Bc4 {[%emt 0:01:56][%cal Od4e6] Black must now prevent Nxe6!} (13. g4 $5 {[%cal Rd3c4]}) 13... Qc7 $1 {[%emt 0:05:59]} 14. Ndb5 {[%emt 0:09:44]} Qc6 {[%emt 0:05:33]} (14... Qb6 $5 {[%cal Ra7a6]}) 15. Bf4 {[%emt 0:02:39]} a6 {[%emt 0:02:49]} 16. Nd4 {[%emt 0:03:05]} Qe8 {[%emt 0:02:40]} 17. Nb3 {[%emt 0:30:19]} (17. Rhe1 $14) 17... b5 {[%emt 0:08:51]} 18. Nxc5 {[%emt 0:00:39]} Bxc5 {[%emt 0:00:12][%cal Be7c5,Bc5b4,Bb4e1][%mdl 32]} 19. Bd3 {[%emt 0:02:22]} Bb7 {[%emt 0:00:45]} 20. Be5 {[%emt 0:02:43] Strongly threatening Bxf6.} Qe7 $36 {[%emt 0:02:15][%mdl 2048] Black has the initiative.} (20... Bxg2 $2 21. Rhg1 Nh5 22. Qxh5 $18) 21. Rhe1 {[%emt 0:02:55]} Rfd8 {[%emt 0:01:32]} (21... Bxg2 $2 22. Rg1 Nd7 23. Rxg2 $18) 22. g4 {[%emt 0:01:18]} Nd7 {[%emt 0:02:12]} 23. Bf4 {[%emt 0:02:49]} ({White should play} 23. Ne4) 23... Bb4 $1 $17 {[%emt 0:02:51] And now ...Bxc3 would win.} 24. Ne4 {[%emt 0:07:16]} Bxe1 $19 {[%emt 0:04:08]} 25. Bd6 {[%emt 0:00:05] [#]} Qh4 {[%emt 0:01:27]} 26. Bg3 $17 {[%emt 0:00:41] [#]} Qe7 {[%emt 0:01:15]} 27. Bd6 $19 {[%emt 0:00:09] [#]} Qh4 {[%emt 0:05:08]} 28. Bg3 $1 $17 {[%emt 0:01:41] [#]} Qe7 {[%emt 0:00:36] Weighted Error Value: White=0.18 (very precise) /Black=0.19 (very precise)} 1/2-1/2

[Event "31st Kavala Open-A 2022"]
[Site "Kavala"]
[Date "2022.07.30"]
[Round "6.11"]
[White "Ortega Lopez, Mikel"]
[Black "Zawadzka, Jolanta"]
[Result "1/2-1/2"]
[ECO "B32"]
[WhiteElo "2249"]
[BlackElo "2416"]
[Annotator "TA"]
[PlyCount "71"]
[EventDate "2022.07.27"]
[EventType "swiss"]
[EventCountry "GRE"]
[SourceTitle "playchess.com"]
[Source "ChessBase"]
[SourceQuality "1"]
[TimeControl "40/5400+30:1800+30"]

{[%evp 14,71,22,27,34,16,35,34,33,16,20,20,11,20,28,30,23,31,61,55,55,53,59,55,64,25,59,6,14,7,23,0,0,0,0,0,0,0,0,0,0,0,0,0,0,0,0,0,6,0,0,0,0,0,0,0,0,0,0,0]} 1. e4 {[%emt 0:08:08]} c5 {[%emt 0:00:04]} 2. Nf3 {[%emt 0:00:08][%cal Bg1f3,Bf3d4,Bd4b5,Bb5a3,Ba3c4,Bc4e3,Be3d5][%mdl 32]} Nc6 {[%emt 0:00:05]} 3. d4 {[%emt 0:00:07]} cxd4 {[%emt 0:00:06]} 4. Nxd4 {[%emt 0:00:06]} e5 {[%emt 0:00:04]} 5. Nb5 {[%emt 0:00:08]} d6 {[%emt 0:00:06]} 6. N1c3 {[%emt 0:00:07]} a6 {[%emt 0:00:09]} 7. Na3 {[%emt 0:00:04]} Be6 {[%emt 0:00:25]} 8. Nc4 {[%emt 0:01:17]} Rb8 {[%emt 0:00:33] B32: Sicilian: Löwenthal and Kalashnikov Variations.} 9. a4 {[%emt 0:13:44]} Nf6 {[%emt 0:00:09] is cutting edge theory.} 10. Bg5 {[%emt 0:05:21]} Nb4 {[%emt 0:00:16] Prevents Nd5. White is slightly better.} 11. Ne3 {[%emt 0:07:49]} Be7 {[%emt 0:10:24][%cal Of6g4]} 12. Bxf6 {[%emt 0:03:03]} Bxf6 {[%emt 0:00:07]} 13. Ncd5 {[%emt 0:02:16]} Nxd5 {[%emt 0:00:22]} 14. Nxd5 {[%emt 0:00:46]} Bg5 {[%emt 0:00:52]} 15. Bc4 {[%emt 0:04:09] [#]} b5 $146 {[%emt 0:03:26]} ({Predecessor:} 15... Rc8 16. Qd3 O-O 17. O-O Kh8 18. Bb3 Rc5 19. Rad1 Qa5 20. Ne3 Be7 21. Qd2 Qxd2 22. Rxd2 {½-½ (32) Guillermo Gonzalez,A (2023)-Molina Rodriguez,B (2152) Vecindario 2019}) 16. axb5 {[%emt 0:00:12]} axb5 {[%emt 0:00:03]} 17. Bb3 {[%emt 0:00:23]} O-O {[%emt 0:02:13]} 18. O-O {[%emt 0:01:55]} Kh8 {[%emt 0:08:03]} 19. Qd3 {[%emt 0:06:25]} f5 {[%emt 0:04:46]} 20. f3 {[%emt 0:00:06]} (20. exf5 $14 Bxf5 21. Qe2) 20... Qc8 $11 {[%emt 0:09:30]} 21. Kh1 {[%emt 0:05:47]} Qc5 {[%emt 0:06:00]} 22. Rad1 {[%emt 0:04:56]} fxe4 {[%emt 0:10:56] The position is equal.} 23. fxe4 {[%emt 0:00:51]} g6 {[%emt 0:02:34]} 24. h3 {[%emt 0:02:35]} Kg7 {[%emt 0:02:53]} 25. Kh2 {[%emt 0:00:28]} h5 {[%emt 0:01:56]} 26. Qg3 {[%emt 0:06:55]} Bxd5 {[%emt 0:09:21]} 27. Qxg5 {[%emt 0:00:30]} Bxb3 {[%emt 0:00:12]} 28. cxb3 {[%emt 0:01:43] [#] Threatens to win with Qe7+.} Qc7 {[%emt 0:00:08] Inhibits Qe7+.} 29. Rc1 {[%emt 0:01:52]} Qd7 {[%emt 0:01:57]} 30. Rfd1 {[%emt 0:02:15]} Rf7 {[%emt 0:03:09]} 31. Rd5 {[%emt 0:00:29]} Rb6 {[%emt 0:01:47]} 32. Rc3 {[%emt 0:01:57]} Qe7 {[%emt 0:07:13]} 33. Qe3 {[%emt 0:00:04]} Qb7 {[%emt 0:00:14]} 34. Qg5 {[%emt 0:03:23]} Qe7 {[%emt 0:00:31]} 35. Qe3 {[%emt 0:00:14]} Qb7 {[%emt 0:00:28]} 36. Qg5 {[%emt 0:03:48] Weighted Error Value: White=0.08 (flawless) /Black=0.03 (flawless)} 1/2-1/2

[Event "31st Kavala Open-A 2022"]
[Site "Kavala"]
[Date "2022.07.30"]
[Round "6.12"]
[White "Trimitzios, Petros"]
[Black "Georgiou, Kostantinos"]
[Result "1-0"]
[ECO "D94"]
[WhiteElo "2369"]
[BlackElo "2259"]
[Annotator "TA"]
[PlyCount "81"]
[EventDate "2022.07.27"]
[EventType "swiss"]
[EventCountry "GRE"]
[SourceTitle "playchess.com"]
[Source "ChessBase"]
[SourceQuality "1"]
[TimeControl "40/5400+30:1800+30"]

{[%evp 21,81,-54,-52,-45,-44,-54,-42,-51,-42,-41,-43,-66,-32,-54,-21,-73,-18,-33,-6,-18,0,-28,0,-16,0,0,6,11,17,-13,20,6,156,163,152,164,154,160,150,131,138,121,189,195,318,300,268,205,398,382,609,608,1273,1192,1459,1477,1413,1312,29983,29984,29972,4662]} 1. Nf3 {[%emt 0:00:02]} c5 {[%emt 0:05:26]} 2. c4 {[%emt 0:01:30]} Nc6 {[%emt 0:00:18]} 3. Nc3 {[%emt 0:00:10]} g6 {[%emt 0:00:46]} 4. e3 {[%emt 0:00:05]} Nf6 {[%emt 0:00:31]} 5. d4 {[%emt 0:00:12]} cxd4 {[%emt 0:00:13]} 6. exd4 {[%emt 0:00:08]} d5 {[%emt 0:00:21]} 7. Bg5 {[%emt 0:00:42]} Be6 {[%emt 0:01:20]} 8. c5 {[%emt 0:13:06]} Ne4 {[%emt 0:02:44]} 9. Bf4 {[%emt 0:01:09]} Bg7 {[%emt 0:01:49]} 10. Bb5 {[%emt 0:04:44]} O-O {[%emt 0:13:48]} 11. O-O {[%emt 0:02:02]} Bg4 $1 {[%emt 0:03:02][%cal Oc6d4]} 12. Bxc6 {[%emt 0:05:30] D94: Grünfeld: 4 Nf3 Bg7 5 e3.} bxc6 {[%emt 0:01:09]} 13. h3 {[%emt 0:00:02]} Bxf3 {[%emt 0:02:41]} 14. Qxf3 {[%emt 0:01:42] Black is slightly better.} e5 {[%emt 0:16:32]} 15. dxe5 {[%emt 0:09:43]} Nxc5 {[%emt 0:00:00] [#]} 16. Qe2 $146 {[%emt 0:09:16]} ({Predecessor:} 16. Rfe1 Ne6 17. Bg3 Rb8 18. b3 Rb4 19. Rad1 h5 20. Qd3 Qa5 21. Qc2 Rd8 22. Qb2 {½-½ (30) Simonenkov,S (2246)-Dreisch,J (2121) ICCF email 2017}) 16... Ne6 {[%emt 0:00:00]} 17. Bh2 {[%emt 0:02:07]} Rb8 {[%emt 0:04:13]} 18. Rab1 {[%emt 0:01:32]} (18. b3 $11) 18... Qb6 {[%emt 0:09:53]} ({Better is} 18... Qa5 $17 19. Qf3 Rfd8) 19. Kh1 {[%emt 0:02:17]} d4 {[%emt 0:03:18]} 20. Ne4 {[%emt 0:01:10]} Qb5 {[%emt 0:01:43]} 21. Qf3 {[%emt 0:03:07]} Qd5 {[%emt 0:03:12]} (21... Bxe5 22. Nf6+ Kg7 23. Bxe5 (23. Nd7 Bxh2 24. Kxh2 Rfd8 $11) 23... Qxe5 24. Nd7 $14) 22. b3 {[%emt 0:06:32]} Rbd8 {[%emt 0:06:04]} (22... Bxe5 23. Bxe5 Qxe5 24. Nf6+ Kg7 25. Nd7 $16) 23. Rfe1 {[%emt 0:03:11]} h6 {[%emt 0:04:02]} (23... Bxe5 $2 24. Bxe5 f5 25. Nf6+ Rxf6 26. Bxf6 $18) 24. Rbd1 {[%emt 0:07:24]} a5 {[%emt 0:04:08]} (24... Bxe5 $2 25. Bxe5 f5 26. Nf6+ Rxf6 27. Bxf6 $18) 25. Qg4 {[%emt 0:07:12]} Kh7 {[%emt 0:06:52]} (25... Bxe5 $2 26. Nc3 Qc5 27. Rxe5 $18) (25... a4 $5 {[%cal Ra4b3]}) 26. f4 {[%emt 0:00:43] Black should prevent f5.} f5 {[%emt 0:03:14] Black is now going downhill.} (26... Nc5 $1 $11 27. Nxc5 Qxc5) 27. exf6 $1 $16 {[%emt 0:00:29]} Bxf6 {[%emt 0:00:05]} 28. Nxf6+ {[%emt 0:02:30]} Rxf6 {[%emt 0:00:03]} 29. Re5 $36 {[%emt 0:00:02][%cal Be1e5,Be5f5,Bf5f4,Bf4f6][%mdl 2080] Black is under strong pressure.} Qd7 {[%emt 0:00:29][%cal Oe6f4]} 30. f5 {[%emt 0:03:57] White is more active.} (30. Rxa5 Nxf4 31. Qxd7+ Rxd7 $11) 30... gxf5 {[%emt 0:00:56]} 31. Rxf5 {[%emt 0:00:12]} Rg6 {[%emt 0:00:29]} (31... Rg8 $16 32. Qxg8+ (32. Rxf6 Rxg4 33. hxg4 Ng5 $11) 32... Kxg8 33. Rxf6 Qd5 34. Rxh6 c5) 32. Qe4 $18 {[%emt 0:01:17]} Ng5 {[%emt 0:01:01]} (32... Qe8 $142 33. h4 (33. Rxa5 Ng5 $16) 33... Kg8 34. Rxa5 c5) 33. Qd3 {[%emt 0:00:13] Strongly threatening h4.} Re8 {[%emt 0:02:42]} 34. Rf4 {[%emt 0:03:39] Against Ne4. Hoping for h4.} (34. Rxa5 Ne4 35. Rf1 (35. Qxd4 Qxd4 36. Rxd4 Nf2+ 37. Kg1 Nxh3+ 38. Kh1 Re1+ 39. Bg1 Nxg1 $17) 35... c5 $14) 34... c5 $2 {[%emt 0:00:38] [#]} (34... Qe6 35. Rxd4 (35. Qxd4 Ne4 $16) 35... Ne4) 35. h4 $1 {[%emt 0:00:29] aiming for h5.} ({And not} 35. Rf6 Ne4 36. Rf4 Qd5 $11) 35... Ne6 {[%emt 0:01:40]} (35... Nh3 $142) 36. Rf6 {[%emt 0:02:25]} Qg7 {[%emt 0:00:14]} 37. Rdf1 {[%emt 0:00:19]} c4 {[%emt 0:00:49]} 38. bxc4 {[%emt 0:01:51] White wants to mate with h5.} Nc5 {[%emt 0:00:40] [#]} 39. Qb1 $1 {[%emt 0:01:04] White threatens Rxg6 and mate.} ({Not} 39. Qxd4 Re4 40. Qxe4 Nxe4 $16) 39... Re1 {[%emt 0:00:48]} 40. Rxe1 {[%emt 0:00:00]} Qxf6 {[%emt 0:00:00]} 41. h5 {[%emt 0:00:12] Weighted Error Value: White=0.11 (very precise) /Black=0.70} 1-0

[Event "31st Kavala Open-A 2022"]
[Site "Kavala"]
[Date "2022.07.30"]
[Round "6.13"]
[White "Triantos, Konstantinos"]
[Black "Koutlas, Nikolaos"]
[Result "0-1"]
[ECO "B21"]
[WhiteElo "2210"]
[BlackElo "2314"]
[Annotator "TA"]
[PlyCount "82"]
[EventDate "2022.07.27"]
[EventType "swiss"]
[EventCountry "GRE"]
[SourceTitle "playchess.com"]
[Source "ChessBase"]
[SourceQuality "1"]
[TimeControl "40/5400+30:1800+30"]

{[%evp 9,82,0,0,-3,27,4,11,-13,0,-2,-2,-7,0,-8,-12,-15,-10,-46,-51,-53,-54,-75,-49,-68,-45,-260,-261,-263,-260,-250,-264,-467,-198,-204,-217,-314,-258,-404,-391,-388,-397,-402,-393,-387,-385,-706,-698,-680,-448,-538,-506,-460,-456,-538,-531,-552,-532,-560,-570,-542,-531,-501,-451,-521,-534,-751,-751,-880,-872,-1577,-1518,-1506,-1466,-29976,-29976]} 1. e4 {[%emt 0:00:10]} c5 {[%emt 0:00:05]} 2. Be2 {[%emt 0:00:14]} Nc6 {[%emt 0:00:42]} 3. f4 {[%emt 0:00:06]} d5 {[%emt 0:03:56]} 4. d3 {[%emt 0:02:24]} Nf6 {[%emt 0:01:15]} 5. e5 {[%emt 0:02:32]} Ng8 {[%emt 0:00:33][%cal Bf6g8,Bg8h6,Bh6g4,Bg4f2][%mdl 32]} 6. Nf3 {[%emt 0:01:47] B21: Sicilian: 2 f4 and Morra Gambit.} g6 {[%emt 0:03:42]} 7. O-O {[%emt 0:00:20] [#]} Nh6 $146 {[%emt 0:01:10]} ({Predecessor:} 7... Bg7 8. c4 d4 9. Ng5 Nh6 10. Bf3 Qc7 11. Na3 O-O 12. Nc2 Rb8 13. Ne4 b6 {1-0 (38) Stevic,H (2621)-Yilmaz,M (2476) Rijeka 2010}) 8. Be3 {[%emt 0:08:49] The position is equal.} d4 {[%emt 0:06:07]} 9. Bf2 {[%emt 0:01:09]} Bg7 {[%emt 0:06:19]} 10. Nbd2 {[%emt 0:03:37]} O-O {[%emt 0:02:01]} 11. Ne4 {[%emt 0:04:06]} b6 {[%emt 0:01:40]} 12. c3 {[%emt 0:06:49]} Ng4 {[%emt 0:05:51]} 13. b4 {[%emt 0:17:47]} Nxf2 {[%emt 0:05:04]} 14. Rxf2 {[%emt 0:00:08]} cxb4 {[%emt 0:01:53]} 15. cxb4 {[%emt 0:00:05]} Nxb4 {[%emt 0:01:16][%cal Bc6b4,Bb4d5,Bd5f4][%mdl 32]} 16. Qa4 {[%emt 0:00:56]} Nd5 {[%emt 0:11:46]} 17. Nxd4 $2 {[%emt 0:00:39] [#] Loses the game.} (17. g3 $1 $15) 17... Nxf4 $1 $19 {[%emt 0:02:11][%mdl 512]} 18. Rxf4 {[%emt 0:01:47] aiming for Nf3.} (18. Nf3 Nxe2+) 18... Bxe5 {[%emt 0:00:06]} 19. Nc6 {[%emt 0:01:42]} Bd7 {[%emt 0:00:57] A strong pair of Bishops.} 20. Rff1 $2 {[%emt 0:03:24]} (20. Nxd8 Bxa4 21. Ne6) 20... Qe8 {[%emt 0:03:11]} (20... Bxa1 $142 21. Nxd8 (21. Rxa1 $2 Bxc6 22. Qb4 Rc8 $19) 21... Bxa4) 21. Rac1 {[%emt 0:01:54]} Rc8 {[%emt 0:00:37][%cal Ba8c8,Bc8c6,Bc6c1][%mdl 32]} 22. d4 {[%emt 0:08:38]} (22. Qxa7 {was worth a try.} Rxc6 23. Kh1) 22... Rxc6 {[%emt 0:00:38]} 23. Bb5 {[%emt 0:01:29]} (23. Qxa7 $142 Bxd4+ 24. Kh1) 23... Rxc1 {[%emt 0:00:17]} 24. Bxd7 {[%emt 0:00:12] [#]} Bxh2+ $1 {[%emt 0:04:26]} 25. Kxh2 {[%emt 0:00:34]} Qb8+ {[%emt 0:00:06]} 26. Kg1 {[%emt 0:00:26]} Qf4 {[%emt 0:01:10][%csl Gf4][%cal Rc1f1]} 27. Rxc1 (27. Nf2) 27... Qxc1+ {[%emt 0:00:05]} 28. Kh2 {[%emt 0:01:51]} Qf4+ {[%emt 0:01:42]} 29. Ng3 {[%emt 0:00:04]} Rd8 {[%emt 0:00:39][%cal Ob6b5]} 30. d5 {[%emt 0:00:35]} Qxa4 {[%emt 0:01:37]} 31. Bxa4 {[%emt 0:00:03]} Rxd5 {[%emt 0:00:07]} 32. Bb3 {[%emt 0:00:10]} Re5 {[%emt 0:00:29]} 33. Kg1 {[%emt 0:00:16]} a5 {[%emt 0:02:43][%cal Ba7a5,Ba5a4,Ba4a3][%mdl 32]} 34. Kf2 {[%emt 0:00:02]} b5 {[%emt 0:01:12][%cal Bb6b5,Bb5b4][%mdl 32]} 35. Ne2 {[%emt 0:00:16]} a4 {[%emt 0:00:36]} 36. Bc2 {[%emt 0:00:03]} Rc5 {[%emt 0:00:24]} 37. Bd3 {[%emt 0:00:03]} b4 {[%emt 0:00:19]} 38. Ke3 {[%emt 0:00:03]} a3 {[%emt 0:05:53][%cal Ob4b3] Hoping for ...b3!} 39. Nd4 {[%emt 0:00:36]} e5 {[%emt 0:00:15]} 40. Nc2 {[%emt 0:00:00]} b3 {[%emt 0:00:00]} 41. axb3 {[%emt 0:00:20] [#]} Rxc2 $1 {[%emt 0:00:48][%mdl 512] Weighted Error Value: White=0.67/Black=0.20 (precise)} 0-1

[Event "31st Kavala Open-A 2022"]
[Site "Kavala"]
[Date "2022.07.30"]
[Round "6.14"]
[White "Priyanka Nutakki"]
[Black "Michalicka, Milan"]
[Result "1-0"]
[ECO "E61"]
[WhiteElo "2308"]
[BlackElo "2216"]
[Annotator "TA"]
[PlyCount "91"]
[EventDate "2022.07.27"]
[EventType "swiss"]
[EventCountry "GRE"]
[SourceTitle "playchess.com"]
[Source "ChessBase"]
[SourceQuality "1"]
[TimeControl "40/5400+30:1800+30"]

{[%evp 9,91,10,45,38,61,33,70,68,72,72,83,80,83,40,85,50,81,69,64,59,96,110,131,98,117,117,158,158,158,138,151,150,195,194,193,196,206,213,234,233,277,270,308,308,308,308,333,308,356,356,356,351,343,318,330,288,262,212,311,297,283,269,388,393,387,369,524,506,581,576,559,564,568,516,29965,29965,29968,29969,29967,29960,29970,29971,29974,29975]} 1. d4 {[%emt 0:04:43]} Nf6 {[%emt 0:00:13]} 2. c4 {[%emt 0:00:31]} g6 {[%emt 0:00:11]} 3. Nc3 {[%emt 0:00:14]} Bg7 {[%emt 0:00:09]} 4. Nf3 {[%emt 0:01:18]} d6 {[%emt 0:00:30]} 5. Bg5 {[%emt 0:01:10]} c6 {[%emt 0:03:18]} (5... h6 $5 {[%cal Rh6g5]} 6. Bxf6 Bxf6 $11) 6. e4 {[%emt 0:02:02] E61: King's Indian: Early deviations for White, including Smyslov System.} Qa5 {[%emt 0:01:03]} 7. Qd2 {[%emt 0:02:46]} Bg4 {[%emt 0:02:48]} 8. Be2 {[%emt 0:01:42] White is slightly better.} Nbd7 {[%emt 0:01:58]} 9. O-O {[%emt 0:02:51] [#]} Bxf3 $146 {[%emt 0:07:39]} ({Predecessor:} 9... O-O 10. Rfe1 Rad8 11. a3 Qc7 12. Rac1 e5 13. d5 c5 14. Nb5 Qb8 15. Nc3 Qc7 {1-0 (91) Kuiper,A-Bosma,J Sneek 2013}) 10. Bxf3 {[%emt 0:00:15]} e5 {[%emt 0:00:20]} 11. Be3 {[%emt 0:08:24]} O-O {[%emt 0:00:59]} 12. Rab1 {[%emt 0:02:56]} Rfd8 {[%emt 0:08:04]} 13. b4 {[%emt 0:00:22]} Qc7 {[%emt 0:00:11]} 14. d5 {[%emt 0:05:55]} a6 {[%emt 0:09:02] Black is now going downhill.} 15. Rfc1 {[%emt 0:01:49]} Rac8 {[%emt 0:00:57]} 16. a4 {[%emt 0:06:22]} c5 {[%emt 0:01:24]} 17. b5 {[%emt 0:02:20]} a5 {[%emt 0:03:13]} 18. b6 {[%emt 0:00:30]} Nxb6 {[%emt 0:02:03]} 19. Nb5 {[%emt 0:00:07][%csl LRa5,LRc7]} Qe7 {[%emt 0:03:06]} 20. Qxa5 {[%emt 0:01:48] White is more active.} Nfd7 {[%emt 0:02:54]} 21. Na7 {[%emt 0:03:00][%csl LRb6,LRc8]} Ra8 {[%emt 0:00:38]} 22. Rxb6 {[%emt 0:01:01]} Nxb6 {[%emt 0:00:09]} 23. Qxb6 {[%emt 0:00:03]} Bf6 {[%emt 0:01:41]} 24. Rb1 {[%emt 0:08:09]} Rdb8 {[%emt 0:01:23]} 25. Bd1 {[%emt 0:15:02]} Qd7 {[%emt 0:13:04]} 26. Nb5 {[%emt 0:03:12]} Ra6 {[%emt 0:03:03]} 27. Qc7 {[%emt 0:00:03]} Qc8 {[%emt 0:01:23]} 28. f4 {[%emt 0:08:44]} Bd8 {[%emt 0:01:56]} 29. Qxc8 {[%emt 0:00:09]} Rxc8 {[%emt 0:00:04]} 30. fxe5 {[%emt 0:02:47]} dxe5 {[%emt 0:00:10]} 31. Bg4 {[%emt 0:06:42]} Rca8 {[%emt 0:00:41]} 32. Bxc5 {[%emt 0:00:16] Hoping for Nc3.} Rxa4 {[%emt 0:00:11]} 33. Nd6 {[%emt 0:01:56]} Ra1 {[%emt 0:01:27]} (33... Be7 {was worth a try.} 34. Rxb7 Bf8) 34. Rxa1 $18 {[%emt 0:00:25]} Rxa1+ {[%emt 0:00:05]} 35. Kf2 {[%emt 0:00:01]} b6 {[%emt 0:03:26]} (35... Rb1 $142 36. Be3 Be7) 36. Nb7 {[%emt 0:03:36]} Ra2+ {[%emt 0:07:20]} 37. Be2 {[%emt 0:02:26]} bxc5 {[%emt 0:04:52]} (37... Bh4+ $142 38. g3 bxc5) 38. Nxd8 {[%emt 0:00:01]} Rb2 {[%emt 0:01:04]} 39. Nc6 {[%emt 0:00:34]} f6 {[%emt 0:00:19]} 40. Nd8 {[%emt 0:00:00]} Rb6 {[%emt 0:00:00]} 41. Ne6 {[%emt 0:00:26]} Rxe6 {[%emt 0:02:34]} (41... Rb2 $18 42. Nxc5 h5) 42. dxe6 {[%emt 0:00:02] White mates.} Kf8 {[%emt 0:00:36]} 43. Bg4 {[%emt 0:00:08]} Ke7 {[%emt 0:00:08]} 44. Ke3 {[%emt 0:00:12]} h5 {[%emt 0:00:05]} 45. Bh3 {[%emt 0:00:01]} g5 {[%emt 0:00:08]} 46. Bf5 {[%emt 0:00:02] Weighted Error Value: White=0.08 (flawless) /Black=0.48} 1-0

[Event "31st Kavala Open-A 2022"]
[Site "Kavala"]
[Date "2022.07.30"]
[Round "6.16"]
[White "Spyratos, Nikolaos"]
[Black "Rahmanidis, Petros"]
[Result "1/2-1/2"]
[ECO "B51"]
[WhiteElo "2268"]
[BlackElo "2191"]
[Annotator "TA"]
[PlyCount "80"]
[EventDate "2022.07.27"]
[EventType "swiss"]
[EventCountry "GRE"]
[SourceTitle "playchess.com"]
[Source "ChessBase"]
[SourceQuality "1"]
[TimeControl "40/5400+30:1800+30"]

{[%evp 10,80,12,22,37,22,35,20,25,3,18,2,7,-12,15,10,22,18,23,29,16,22,36,25,48,8,8,0,0,-14,23,18,56,49,97,91,93,107,231,240,226,0,0,0,0,-130,-136,-132,-37,-47,0,0,0,-45,-50,-54,0,0,0,0,0,-106,-33,-33,0,0,0,0,0,-105,-40,-49,0]} 1. e4 {[%emt 0:00:25]} c5 {[%emt 0:03:37]} 2. Nf3 {[%emt 0:00:11]} d6 {[%emt 0:00:03]} 3. Bb5+ {[%emt 0:00:27]} Nd7 {[%emt 0:00:30]} 4. d4 {[%emt 0:00:27]} cxd4 {[%emt 0:05:20]} 5. Qxd4 {[%emt 0:00:08]} e5 {[%emt 0:01:34]} 6. Qd3 {[%emt 0:00:08]} h6 {[%emt 0:01:32] Against Bg5. B51: Sicilian: Moscow Variation (3 Bb5+) without 3...Bd7.} 7. Nc3 {[%emt 0:00:20] has lost popularity (7.0-0).} a6 {[%emt 0:03:22]} 8. Bxd7+ {[%emt 0:00:08]} Bxd7 {[%emt 0:00:03] The position is equal.} 9. a4 {[%emt 0:02:23]} Rc8 {[%emt 0:08:24]} 10. O-O {[%emt 0:00:55]} Nf6 {[%emt 0:00:51]} 11. Rd1 {[%emt 0:00:28]} Qc7 {[%emt 0:06:15]} 12. Nd2 {[%emt 0:00:21][%cal Bf3d2,Bd2f1,Bf1e3][%mdl 32]} Be7 {[%emt 0:02:12]} 13. Nf1 {[%emt 0:00:09]} O-O {[%emt 0:03:19]} 14. Ne3 {[%emt 0:00:25]} Be6 {[%emt 0:00:18]} 15. Bd2 {[%emt 0:00:46][%cal Bc1d2,Bd2e1,Be1h4,Bh4f6][%mdl 32]} Rfd8 {[%emt 0:09:12][%cal Od6d5]} 16. Be1 {[%emt 0:02:15]} Qc5 {[%emt 0:04:14]} 17. Kh1 {[%emt 0:04:04]} Rd7 {[%emt 0:13:13]} 18. f3 {[%emt 0:02:45]} Bd8 {[%emt 0:06:44]} 19. Bh4 {[%emt 0:31:24] [#]} d5 $146 {[%emt 0:08:08] [#] Hoping for ...d4.} ({Predecessor:} 19... g5 20. Bf2 Qb4 21. Be1 Qc5 22. Bf2 Qb4 23. Rab1 Ba5 24. Be1 Qd4 25. Qxd4 exd4 26. Rxd4 {1-0 (64) Martinez Reyes,P (2422)-Mekhitarian,K (2554) Chess.com INT 2020}) 20. Bxf6 {[%emt 0:07:38]} d4 {[%emt 0:01:28]} 21. Bxd8 {[%emt 0:03:19]} dxe3 {[%emt 0:08:44]} (21... Rcxd8 $14 22. Ned5 dxc3 23. Qxc3 Qb6) 22. Qxd7 $16 {[%emt 0:07:13]} Bxd7 {[%emt 0:00:04]} 23. Rxd7 {[%emt 0:00:08]} Qb4 {[%emt 0:01:11]} (23... e2 $16) 24. Nd5 $18 {[%emt 0:07:38][%csl LRb4,LRe3]} Qxb2 {[%emt 0:00:07][%cal Rb2a1]} 25. Re1 {[%emt 0:00:06]} (25. Rg1 $18 {Strongly threatening Ne7+.} Rc4 26. Nxe3 Rxa4 27. Rdd1) 25... Rxc2 $11 {[%emt 0:02:00]} 26. Nxe3 {[%emt 0:00:24]} Re2 {[%emt 0:01:10]} 27. Rdd1 {[%emt 0:03:47]} (27. Bh4 $11 {remains equal.}) 27... Rxe1+ $17 {[%emt 0:04:19]} 28. Rxe1 {[%emt 0:00:23] [#]} Qd2 {[%emt 0:02:51]} (28... Qb4 $1 $17 {[%cal Rb4e1]} 29. Bh4 Qxa4) 29. Bh4 $15 {[%emt 0:00:02]} Qa2 {[%emt 0:01:49]} (29... b5 $1 $15 30. axb5 axb5) 30. h3 $11 {[%emt 0:11:37] Threatens to win with Rc1.} Qxa4 {[%emt 0:00:13]} 31. Rb1 {[%emt 0:02:18]} b5 {[%emt 0:00:58][%mdl 1024] And now ...b4 would win. Black has compensation.} 32. Nd5 {[%emt 0:00:39] Prevents b4.} Qa2 {[%emt 0:01:38]} (32... a5 $15 33. Rc1 b4) 33. Rb4 {[%emt 0:04:59]} f6 {[%emt 0:00:16]} 34. Kh2 {[%emt 0:02:05]} Qe2 {[%emt 0:00:48]} 35. Nc3 {[%emt 0:01:53]} (35. Rb3 $11) 35... Qe3 {[%emt 0:00:27]} (35... Qf1 $17) 36. Nd5 $15 {[%emt 0:02:25]} Qd2 {[%emt 0:00:26]} (36... Qd3 $5 {[%cal Ra6a5]}) 37. Rb1 {[%emt 0:00:57]} Qa2 {[%emt 0:00:34]} 38. Rb4 {[%emt 0:02:24]} Qe2 {[%emt 0:00:23]} (38... Qd2 $11) 39. Nc3 $17 {[%emt 0:00:14]} Qd2 {[%emt 0:00:39]} ({Better is} 39... Qf1 $17) 40. Nd5 $15 {[%emt 0:00:00]} Qe2 {[%emt 0:00:00] Weighted Error Value: White=0.25 (precise) /Black=0.23 (precise)} (40... Qd3 $1 $15 {should be considered.}) 1/2-1/2